Cogmind - Beta 9.6 @@@ ROGUE MODE // 2020.05.26 @ 22:00:06 Player: cl0y-b1cks Result: Destroyed by Y-45 Defender with Heavy Assault Rifle Performance ------------- Evolutions (2) 1000 Regions Visited (5) 1000 Robots Destroyed (28) 140 Value Destroyed (588) 588 Prototype IDs (1) 20 Alien Tech Used (0) 0 Bonus (0) 0 TOTAL SCORE: 2748 Bonus ------- None Cogmind --------- Core Integrity 0/550 Matter 295/300 Energy 100/100 System Corruption 0% Temperature Cool (9) Movement Core (150) Ox2 Location -8/Materials Parts ------- > --- POWER (1) -------- (None) > --- PROPULSION (4) --- (None) > --- UTILITY (4) ------ Medium Storage Unit Utility Shielding > --- WEAPON (2) ------- (None) > --- INVENTORY (8) ---- Improved Heat Sink Medium Storage Unit Compact Matter Pod (106) Long-range Terrain Scanner Peak State ------------ > --- POWER ------------ (None) > --- PROPULSION ------- Improved Titanium Leg Improved Titanium Leg Improved Titanium Leg Improved Titanium Leg > --- UTILITY ---------- Medium Storage Unit Armor Integrity Analyzer Utility Shielding Integration Mediator > --- WEAPON ----------- EM Pulse Cannon Great Maul > --- INVENTORY -------- Hover Unit Hover Unit Improved Heat Sink Medium Storage Unit Compact Matter Pod Long-range Terrain Scanner EM Pulse Cannon [Rating: 29] Favorites ----------- Power Heavy Ion Engine Engine Heavy Ion Engine Power Core Light Nuclear Core Propulsion Aluminum Leg Treads Light Treads Leg Aluminum Leg Hover Unit Hover Unit Utility Medium Storage Unit Device Integration Mediator Storage Medium Storage Unit Processor Armor Integrity Analyzer Protection Utility Shielding Weapon EM Shotgun Energy Gun EM Shotgun Energy Cannon EM Pulse Cannon Ballistic Gun Light Assault Rifle Launcher Rocket Launcher Impact Weapon Great Maul Build | -11 -10 -10 -9 -9 -8 ------- Run | Scr Mat Min Mat Min Mat Slots Evolved 4 | . . . 2 . 2 Power . | . . . . . . Propulsion 2 | . . . . . 2 Utility 2 | . . . 2 . . Weapon . | . . . . . . Parts Attached 34 | 6 2 6 8 2 10 Power 3 | 1 . 1 1 . . Engine 2 | 1 . . 1 . . Core 1 | . . 1 . . . Reactor . | . . . . . . Propulsion 15 | 2 2 2 1 . 8 Treads 2 | 2 . . . . . Leg 7 | . . 2 1 . 4 Wheel . | . . . . . . Hover 6 | . 2 . . . 4 Flight . | . . . . . . Utility 7 | 1 . 2 4 . . Device 1 | . . . 1 . . Storage 3 | 1 . 1 1 . . Processor 1 | . . . 1 . . Hackware . | . . . . . . Protection 2 | . . 1 1 . . Artifact . | . . . . . . Weapon 9 | 2 . 1 2 2 2 Energy Gun 4 | 1 . 1 2 . . Energy Cannon 2 | . . . . . 2 Ballistic Gun 1 | 1 . . . . . Ballistic Cannon . | . . . . . . Launcher 1 | . . . . 1 . Special Weapon . | . . . . . . Impact Weapon 1 | . . . . 1 . Slashing Weapon . | . . . . . . Piercing Weapon . | . . . . . . Special Melee Weapon . | . . . . . . Unidentified Prototypes 1 | . . . 1 . . Parts Lost 23 | . 2 2 2 6 11 Power 2 | . 1 . . 1 . Propulsion 9 | . . 1 . 2 6 Utility 3 | . . . 1 . 2 Weapon 9 | . 1 1 1 3 3 Highest Loss Streak 11 | . 2 2 1 3 11 Average Slot Usage (%) 77 | . 74 73 91 75 59 Engine 4 | . 9 . 5 7 . Core 3 | . . 8 5 . . Treads 4 | . 25 . . . . Leg 13 | . . 14 22 13 10 Hover 2 | . 2 10 . . 3 Device 6 | . . . 9 11 6 Storage 11 | . 14 14 11 11 9 Processor 5 | . . . 7 11 8 Protection 8 | . . 11 8 11 9 Energy Gun 10 | . 8 8 21 . . Energy Cannon 1 | . . . . . 6 Ballistic Gun 3 | . 14 5 . . . Impact Weapon 3 | . . . . 10 7 Naked Turns . | . . . . . . Heaviest Build 32 | 10 10 15 32 23 21 Greatest Support 80 | 40 40 20 23 23 80 Greatest Overweight (x) 6 | . . 1 1 4 6 Average Overweight (x) . | . . . . 1 2 Largest Inventory Capacity 12 | 6 6 8 12 8 8 Average Capacity 7 | 5 6 6 8 8 8 Most Carried 8 | . 2 5 8 5 7 Average Carried 3 | . . 3 5 3 4 Final Capacity 8 | 6 6 8 8 8 8 Final Carried 5 | . 2 5 5 3 4 Class Distribution -------------------- 89% | Mutant 10% | Scavenger-Mutant Dominant Class ---------------- Mutant | -10/Materials Scavenger-Mutant | -10/Mines Mutant | -9/Materials Mutant | -9/Mines Mutant | -8/Materials Resources | -11 -10 -10 -9 -9 -8 ----------- Run | Scr Mat Min Mat Min Mat Matter Collected 533 | 52 135 156 182 8 . Remotely . | . . . . . . Salvage Created 786 | . 219 112 380 28 47 Parts 65 | . 27 10 22 3 3 Haulers Intercepted 1 | . 1 . . . . Recyclers Shooed 1 | . . . 1 . . Parts Field Recycled . | . . . . . . Retrieved Matter . | . . . . . . Parts Self-Destructed . | . . . . . . Prevented . | . . . . . . Kills | -11 -10 -10 -9 -9 -8 ------- Run | Scr Mat Min Mat Min Mat Combat Hostiles Destroyed 23 | . 7 2 9 4 1 Guns 14 | . 5 2 7 . . Cannons 1 | . . . . . 1 AOE 8 | . 2 . 2 4 . Classes Destroyed 7 | . 5 . 2 . . Worker 2 | . 1 1 . . . Hauler 1 | . 1 . . . . Watcher 2 | . 2 . . . . Swarmer 13 | . 6 . 3 4 . Grunt 5 | . 1 2 1 . 1 Brawler 1 | . . . 1 . . Sentry 4 | . . . 4 . . Best Kill Streak 6 | . 6 2 3 4 1 Combat Bots Only 4 | . 3 1 3 4 1 Max Kills in Single Turn 3 | . 3 1 1 3 1 Gunslinging . | . . . . . . Exploded 3 | . 2 . 1 3 . Melee . | . . . . . . Uniques/NPCs Destroyed . | . . . . . . Combat | -11 -10 -10 -9 -9 -8 -------- Run | Scr Mat Min Mat Min Mat Damage Taken 3165 | . 338 234 392 481 1720 Core 911 | . 48 117 73 111 562 Absorbed by Shields . | . . . . . . Core Remaining (%) 62 | 100 . 34 . 54 . Volleys Fired 97 | . 39 26 24 5 3 Largest 2 | . 2 1 2 2 1 Hottest 110 | . 60 40 110 110 63 Shots Fired 131 | . 52 26 44 6 3 Gun 125 | . 52 26 44 3 . Cannon 3 | . . . . . 3 Launcher 3 | . . . . 3 . Special . | . . . . . . Kinetic 61 | . 39 22 . . . Thermal 25 | . . 4 20 1 . Explosive 3 | . . . . 3 . Electromagnetic 42 | . 13 . 24 2 3 Robot Hit Streak 9 | . 7 4 9 3 6 Robot Miss Streak 4 | . 4 2 3 3 . Penetration Max . | . . . . . . Secondary Targets 2 | . . . 2 . . Max Gunslinging Chain 1 | . . . 1 . . Shots Hit Robots 99 | . 28 17 38 5 11 Core Hits 53 | . 16 9 21 4 3 Critical Hits . | . . . . . . Critical Kills . | . . . . . . Critical Parts Destroyed . | . . . . . . Melee Attacks 12 | . . . . 1 11 Impact 12 | . . . . 1 11 Slashing . | . . . . . . Piercing . | . . . . . . Sneak Attacks . | . . . . . . Combat Hostiles . | . . . . . . Follow-up Attacks . | . . . . . . Damage Inflicted 1809 | . 434 142 510 350 373 Guns 879 | . 309 142 428 . . Cannons 79 | . . . . . 79 Explosions 521 | . 125 . 82 314 . Melee 284 | . . . . 36 248 Ramming 46 | . . . . . 46 Kinetic 317 | . 197 120 . . . Thermal 367 | . 125 22 220 . . Explosive 314 | . . . . 314 . Electromagnetic 481 | . 112 . 290 . 79 Impact 284 | . . . . 36 248 Slashing . | . . . . . . Piercing . | . . . . . . Highest Corruption 1 | . . . 1 1 . Average Corruption 1 | . . . 1 1 . Corruption Purged . | . . . . . . Effects 2 | . . . 1 1 . Message Errors 1 | . . . . 1 . Energy Discharges 1 | . . . 1 . . Overload Shots . | . . . . . . Overflow Damage 99 | . 20 . . 41 38 Projectiles . | . . . . . . Explosions 61 | . 20 . . 41 . Melee 38 | . . . . . 38 Knockbacks 3 | . . . . 1 2 Impact 3 | . . . . 1 2 Kinetic . | . . . . . . Secondary . | . . . . . . Self-Inflicted Damage 137 | . . . 10 106 21 Shots 4 | . . . 1 3 . Rammed 8 | . . . . . 8 Targets Rammed 8 | . . . . . 8 Kicked . | . . . . . . Crushed . | . . . . . . Highest Temperature 276 | . 40 7 276 42 27 Average Temperature 46 | . 19 3 66 31 11 Received Heat Transfer 1104 | . 54 135 78 . 837 Siege Activations . | . . . . . . Robots Corrupted . | . . . . . . Combat Hostiles . | . . . . . . Parts Fried 3 | . 1 . 2 . . Impact Corruptions 2 | . . . . . 2 Robots Melted . | . . . . . . Combat Hostiles . | . . . . . . Parts Melted . | . . . . . . Heat Transferred 535 | . 100 50 385 . . Parts Sabotaged . | . . . . . . Parts Stolen . | . . . . . . Parts Stripped . | . . . . . . Power Chain Reactions 3 | . 1 . 2 . . Missiles Intercepted . | . . . . . . Alert | -11 -10 -10 -9 -9 -8 ------- Run | Scr Mat Min Mat Min Mat Peak Influence 352 | . 196 111 352 133 39 Average Influence 108 | . 69 98 185 118 29 Maximum Alert Level 1 | . . . 1 . . Low Security (%) 85 | 100 100 100 55 100 100 Level 1 14 | . . . 44 . . Level 2 . | . . . . . . Level 3 . | . . . . . . Level 4 . | . . . . . . Level 5 . | . . . . . . High Security . | . . . . . . Max Security . | . . . . . . Squads Dispatched 6 | . 1 . 1 . 4 Investigation . | . . . . . . Extermination . | . . . . . . Reinforcement 6 | . 1 . 1 . 4 Assault . | . . . . . . Garrison . | . . . . . . Intercept . | . . . . . . Construction Impeded . | . . . . . . Haulers Reinforced . | . . . . . . Stealth | -11 -10 -10 -9 -9 -8 --------- Run | Scr Mat Min Mat Min Mat Distress Signals 5 | . 2 . . . 3 Communications Jammed . | . . . . . . Distress Signals . | . . . . . . Times Spotted 72 | . 13 4 11 24 20 Peak Tracking Total 13 | . 4 2 3 13 10 Tactical Retreats 5 | . 1 . . . 4 Traps | -11 -10 -10 -9 -9 -8 ------- Run | Scr Mat Min Mat Min Mat Traps Triggered 1 | . . . 1 . . Indirectly . | . . . . . . Trap Hack Attempts . | . . . . . . Triggered . | . . . . . . Disarmed . | . . . . . . Reprogrammed . | . . . . . . Reused . | . . . . . . Traps Extracted . | . . . . . . Installed . | . . . . . . Triggered . | . . . . . . Machines | -11 -10 -10 -9 -9 -8 ---------- Run | Scr Mat Min Mat Min Mat Machines Disabled 1 | . . . . 1 . Max in Single Turn 1 | . . . . 1 . Machines Sabotaged . | . . . . . . Garrisons Compromised . | . . . . . . Overloaded Fab Kills . | . . . . . . Fab Network Shutdowns . | . . . . . . Hacking | -11 -10 -10 -9 -9 -8 --------- Run | Scr Mat Min Mat Min Mat Machines Accessed 2 | . . . 2 . . Terminals 2 | . . . 2 . . Fabricators . | . . . . . . Repair Stations . | . . . . . . Recycling Units . | . . . . . . Scanalyzers . | . . . . . . Garrison Access . | . . . . . . Total Hacks 4 | . . . 4 . . Successful 2 | . . . 2 . . Failed 2 | . . . 2 . . Catastrophic . | . . . . . . Database Lockouts . | . . . . . . Manual 4 | . . . 4 . . Terminals 4 | . . . 4 . . Fabricators . | . . . . . . Repair Stations . | . . . . . . Recycling Units . | . . . . . . Scanalyzers . | . . . . . . Garrison Access . | . . . . . . Terminal Hacks 2 | . . . 2 . . Branch Access Points 2 | . . . 2 . . Fabricator Hacks . | . . . . . . Repair Station Hacks . | . . . . . . Recycling Unit Hacks . | . . . . . . Scanalyzer . | . . . . . . Garrison Access Hacks . | . . . . . . Unauthorized Hacks . | . . . . . . Terminals . | . . . . . . Fabricators . | . . . . . . Repair Stations . | . . . . . . Recycling Units . | . . . . . . Scanalyzers . | . . . . . . Garrison Access . | . . . . . . Data Cores Recovered . | . . . . . . Used . | . . . . . . Hacking Detections 1 | . . . 1 . . Full Trace Events . | . . . . . . Feedback Events . | . . . . . . Feedback Blocked . | . . . . . . Robot Schematics Acquired . | . . . . . . Robots Built . | . . . . . . Matter . | . . . . . . Time . | . . . . . . Total Robot Build Rating . | . . . . . . Part Schematics Acquired . | . . . . . . Parts Built . | . . . . . . Matter . | . . . . . . Time . | . . . . . . Total Part Build Rating . | . . . . . . Parts Repaired . | . . . . . . Time . | . . . . . . Parts Recycled . | . . . . . . Recycled Matter . | . . . . . . Retrieved Matter . | . . . . . . Retrieved Components . | . . . . . . Parts Scanalyzed . | . . . . . . Part Schematics Acquired . | . . . . . . Parts Damaged . | . . . . . . Bothacking | -11 -10 -10 -9 -9 -8 ------------ Run | Scr Mat Min Mat Min Mat Used RIF Installer . | . . . . . . Robots Hacked . | . . . . . . Non-combat . | . . . . . . Combat . | . . . . . . Robot Hacks Applied . | . . . . . . Relay Couplers Released . | . . . . . . Robots Rewired . | . . . . . . Allies Hacked . | . . . . . . Hacks Repelled . | . . . . . . Allies | -11 -10 -10 -9 -9 -8 -------- Run | Scr Mat Min Mat Min Mat Total Allies . | . . . . . . Largest Group . | . . . . . . Highest-Rated Group . | . . . . . . Highest-Rated Ally . | . . . . . . Total Orders . | . . . . . . Ally Attacks . | . . . . . . Total Damage . | . . . . . . Kills . | . . . . . . Allies Corrupted . | . . . . . . Allies Melted . | . . . . . . Intel | -11 -10 -10 -9 -9 -8 ------- Run | Scr Mat Min Mat Min Mat Robot Analysis Total . | . . . . . . Derelict Logs Recovered . | . . . . . . Drone Launches . | . . . . . . Drone Recoveries . | . . . . . . Exploration | -11 -10 -10 -9 -9 -8 ------------- Run | Scr Mat Min Mat Min Mat Turns Passed 1425 | 67 223 194 466 227 248 Spaces Moved 798 | 40 94 133 288 139 104 Core 84 | 7 . . . 33 44 Treads 110 | 33 77 . . . . Legs 487 | . . 81 288 106 12 Wheels . | . . . . . . Hover 117 | . 17 52 . . 48 Flight . | . . . . . . Fastest Speed 50 | 50 56 60 120 120 56 Average Speed 135 | 140 141 97 129 153 171 Slowest Speed 350 | 160 160 150 150 250 350 Overloaded Moves . | . . . . . . Propulsion Burnouts . | . . . . . . Robots Hopped . | . . . . . . Cave-ins Triggered . | . . . . . . Exploration Rate (%) 27 | 3 32 32 33 49 16 Regions Visited 5 Branch Regions 2 Pre-discovered Areas . | . . . . . . Known Exits Taken 1 | . . . 1 . . Unknown Exits Taken 4 | 1 1 1 . 1 . Scrap Searched 3 | . . 3 . . . Spaces Dug . | . . . . . . Terrain Destroyed 25 | . 3 . 7 15 . Melee . | . . . . . . Projectile . | . . . . . . AOE 25 | . 3 . 7 15 . Actions | -11 -10 -10 -9 -9 -8 --------- Run | Scr Mat Min Mat Min Mat Total 989 | 48 139 174 337 146 145 Wait 22 | 3 3 4 7 . 5 Move 793 | 39 93 132 287 138 104 Hop . | . . . . . . Pick Up 9 | . . 3 4 . 2 Fast Attach 25 | 6 2 5 5 . 7 Attach 7 | . . . 2 2 3 Detach 7 | . 2 1 2 . 2 Swap 2 | . . 1 1 . . Drop 7 | . . 2 5 . . Fire 97 | . 39 26 24 5 3 Melee 12 | . . . . 1 11 Ram 8 | . . . . . 8 Kick . | . . . . . . Crush . | . . . . . . Escape Stasis . | . . . . . . Rewire . | . . . . . . Trap . | . . . . . . Miscellaneous . | . . . . . . Route ------- -11/Scrapyard -10/Materials -10/Mines -9/Materials (discovered 2 exits: *Min x2) -9/Mines -8/Materials History --------- Turn | Location | Event 36 | -11/Scrapyard | Discovered new exit (range 15) 68 | -11/Scrapyard | Entered Materials 278 | -10/Materials | Discovered new exit (range 10) 291 | -10/Materials | Entered Mines 314 | -10/Mines | Build established: Mutant 361 | -10/Mines | Core integrity fell below 50% 399 | -10/Mines | Received a Rocket Launcher from a helpful Derelict 482 | -10/Mines | Discovered new exit (range 3) 485 | -10/Mines | Entered Materials 485 | -9/Materials | Evolved 2 slots: Utility x2 619 | -9/Materials | Identified exit to Mines 951 | -9/Materials | Entered Mines 994 | -9/Mines | Lost 3 parts (3w) 1070 | -9/Mines | Assembled infested the area 1128 | -9/Mines | Lost 3 parts (1p2n) 1143 | -9/Mines | Discovered new exit (range 12) 1178 | -9/Mines | Entered Materials 1178 | -8/Materials | Evolved 2 slots: Propulsion x2 1354 | -8/Materials | Core integrity fell below 50% 1411 | -8/Materials | Core integrity fell below 20% 1426 | -8/Materials | Destroyed by Y-45 Defender with Heavy Assault Rifle Last Messages --------------- 01381_ Destabilizing: System interference. 01381_ Armor Integrity Analyzer temporarily disabled. 01384_ Slammed into G-47 Trooper. 01384_ Armor Integrity Analyzer permanently disabled. 01384_ Destabilizing: Short circuit. 01385_ Slammed into G-47 Trooper. 01387_ R-06 Scavenger collects Aluminum Leg. 01390_ R-06 Scavenger collects Imp. Heat Sink. 01390_ Slammed into R-06 Scavenger. 01392_ W-25 Informer sends out distress signal. 01404_ Slammed into S-10 Pest. 01406_ Hover Unit destroyed. 01415_ Broken Armor Integrity Analyzer destroyed. 01418_ Slammed into R-06 Scavenger. 01419_ O-16 Technician: "IFF HANDSHAKE FAILED. SECURING TERMINAL." 01419_ S-10 Pest destroyed. 01423_ O-16 Technician uses terminal to summon reinforcements. 01423_ ALERT: Hostiles spotted, dispatching reinforcements to Terminal M008. 01423_ O-16 Technician locks terminal. Map ----- +----------------------------------------------------+ | ?????????????????# #?????????????????????? | | ?????????????????# #?????????????????????? | | ?????????????????# #?????????????????????? | | ?????????????????# #?????????????????????? | | ?????????????????# #?????????????????????? | | ???????????#######+## #?????????????????????? | | ???????????# # #?????????????????????? | | ???????????# # #########?????????????? | | ???????????# # ## !#?????????????? | | ???????????# # ## "" #?????????????? | | ???????????# + # """ #?????????????? | | ???????????# # # S" #?????????????? | | ???????????# # + #?????????????? | | ???????????# # # ! %#?????????????? | | ???????????# # ########?????????????? | | ???????????########## #???????????????? | | ????????????????????# #???????????????? | | ????????????????????# ## #???????????????? | | ?????????????????#! !## =#???????????????? | | ?????????????????#! !##*%######??????????? | | ?????????????????##!!!!### [ #??????????? | | ??????????????????######?# #??????????? | | ????????????????????########t## +??????????? | | ????????????????????# s #? #??????????? | | ????????????????????# rsT #??#??????????? | | ????????????????????# !@*o #?????????????? | | ????????????????????# !!* #?????????????? | | ????????????????????# !* #?????????????? | | ????????????????????# #?????????????? | | ????????????????????# #?????????????? | | ??????????????????? /r Y #?????????????? | | ?????????????????? ## ########?????????????? | | ????????????????? ?##?????????????????????? | | ???????????????? ?????????????????????????? | | ???????????????###??????????????????????????? | | ????????????????????????????????????????????? | | ????????????????????????????????????????????? | | ????????????????????????????????????????????? | | | | | | | | | | | | | | | | | | | | | | | | | +----------------------------------------------------+ Best States ------------- Heat Dissipation 31 Energy Generation 14 Energy Capacity 280 Matter Stores 300 Matter Capacity 300 Sight Range 16 Terrain Scan Density 10 Utility Shielding 33 Weapon Shielding 33 Evasion (%) 53 Armor Integrity Analysis 33 Recoil Reduction 2 Item Schematics ----------------- None Robot Schematics ------------------ None Fabricated ------------ Nothing Alien Tech Used ----------------- None Achievements -------------- None Challenges ------------ None Game ------ Seed UltimateBiocellRouter Manual? 0 Play Time 00:15:04 Cumulative 119.9 hours Start 2020.05.23 @ 13:14:59 End 2020.05.26 @ 22:00:06 Sessions 3 Manual Loads 0 Difficulty Rogue Special Mode None Game No. 218 Rogue 218 Adventurer 0 Explorer 0 Win Type - Total 0 Types 0/0/0/0/0/0/0 Lore% 24 Gallery% 47 Achievement% 30 Wizard Run 0 Options --------- ASCII 0 Keyboard 1 Movement Numpad Keybinds 0 Fullscreen 2 Font 18/SmallcapsGlow Map View 76x50 Tactical HUD 1 Map Filters NONE Filters NONE Steam 1 RUN: 171ae9d6-0982-4325-9e24-2dd3e53b7ea8